[Event "*** SCC Grand Prix: Titled Tuesday Blitz"]
[Site "Chess.com"]
[Date "2020.06.02"]
[Round "10"]
[White "Juanovic"]
[Black "Zmeeed63"]
[Result "1-0"]
[WhiteElo "2119"]
[BlackElo "2190"]
[TimeControl "180+1"]
[EndTime "11:58:12 PDT"]
[Termination "Juanovic won by checkmate"]

1. e4 {[%clk 0:03:00.9]} 1... Nc6 {[%clk 0:02:59.2]} 2. d4 {[%clk 0:02:59.6]}
2... d5 {[%clk 0:02:58.7]} 3. e5 {[%clk 0:02:56.9]} 3... Bf5 {[%clk 0:02:58.4]}
4. c3 {[%clk 0:02:53.9]} 4... e6 {[%clk 0:02:58.6]} 5. Nf3 {[%clk 0:02:52.1]}
5... Nge7 {[%clk 0:02:58.8]} 6. Be2 {[%clk 0:02:50.6]} 6... f6 {[%clk
0:02:59.2]} 7. Nh4 {[%clk 0:02:49.7]} 7... Qd7 {[%clk 0:02:52.3]} 8. Nxf5 {[%clk
0:02:49.1]} 8... Nxf5 {[%clk 0:02:53.2]} 9. exf6 {[%clk 0:02:47.3]} 9... gxf6
{[%clk 0:02:54.1]} 10. Bh5+ {[%clk 0:02:45.9]} 10... Kd8 {[%clk 0:02:54.5]} 11.
O-O {[%clk 0:02:43.6]} 11... Rg8 {[%clk 0:02:54.3]} 12. Nd2 {[%clk 0:02:38.6]}
12... Qg7 {[%clk 0:02:53.9]} 13. g3 {[%clk 0:02:34.6]} 13... Bd6 {[%clk
0:02:43.6]} 14. Nb3 {[%clk 0:02:31.5]} 14... Kd7 {[%clk 0:02:35.1]} 15. Nc5+
{[%clk 0:02:25.4]} 15... Bxc5 {[%clk 0:02:34.7]} 16. dxc5 {[%clk 0:02:25.8]}
16... Ne5 {[%clk 0:02:22.4]} 17. Bf4 {[%clk 0:02:23.6]} 17... c6 {[%clk
0:02:18.8]} 18. Re1 {[%clk 0:01:40.2]} 18... Ng6 {[%clk 0:01:47.2]} 19. Be3
{[%clk 0:01:07.9]} 19... Nxe3 {[%clk 0:01:13.2]} 20. Rxe3 {[%clk 0:01:06.4]}
20... Qh6 {[%clk 0:01:01.8]} 21. Kh1 {[%clk 0:01:01.7]} 21... Nf8 {[%clk
0:00:36.9]} 22. c4 {[%clk 0:00:57.1]} 22... Rg5 {[%clk 0:00:36.1]} 23. Bf3
{[%clk 0:00:46.6]} 23... Rxg3 {[%clk 0:00:18.5]} 24. cxd5 {[%clk 0:00:41]} 24...
cxd5 {[%clk 0:00:14.8]} 25. Bxd5 {[%clk 0:00:36.2]} 25... Rxe3 {[%clk
0:00:13.2]} 26. Bxb7+ {[%clk 0:00:33.3]} 26... Kc7 {[%clk 0:00:12.5]} 27. Bxa8
{[%clk 0:00:31.5]} 27... Rh3 {[%clk 0:00:12.8]} 28. Qd6+ {[%clk 0:00:25.4]}
28... Kc8 {[%clk 0:00:12.8]} 29. Qc6+ {[%clk 0:00:24]} 29... Kd8 {[%clk
0:00:12.2]} 30. Rd1+ {[%clk 0:00:23.9]} 30... Ke7 {[%clk 0:00:10.8]} 31. Qc7+
{[%clk 0:00:22.1]} 31... Nd7 {[%clk 0:00:08.7]} 32. Rxd7+ {[%clk 0:00:21.4]}
32... Kf8 {[%clk 0:00:09.1]} 33. Rd8# {[%clk 0:00:21.2]} 1-0

[Event "*** SCC Grand Prix: Titled Tuesday Blitz"]
[Site "Chess.com"]
[Date "2020.06.02"]
[Round "10"]
[White "Gabrielian_Artur"]
[Black "novendrapriasmoro"]
[Result "0-1"]
[WhiteElo "2733"]
[BlackElo "2641"]
[TimeControl "180+1"]
[EndTime "11:58:13 PDT"]
[Termination "novendrapriasmoro won by resignation"]

1. e4 {[%clk 0:03:00.9]} 1... c5 {[%clk 0:02:57.2]} 2. Nc3 {[%clk 0:03:00.3]}
2... Nc6 {[%clk 0:02:57.2]} 3. Bb5 {[%clk 0:02:59.3]} 3... g6 {[%clk 0:02:56.8]}
4. Bxc6 {[%clk 0:02:59]} 4... bxc6 {[%clk 0:02:57.7]} 5. d3 {[%clk 0:02:59.4]}
5... Bg7 {[%clk 0:02:57.6]} 6. Nge2 {[%clk 0:02:56.9]} 6... Nh6 {[%clk
0:02:51.4]} 7. O-O {[%clk 0:02:54.9]} 7... f6 {[%clk 0:02:50.6]} 8. Be3 {[%clk
0:02:51.3]} 8... d6 {[%clk 0:02:50.4]} 9. h3 {[%clk 0:02:49.2]} 9... O-O {[%clk
0:02:49.9]} 10. Qd2 {[%clk 0:02:49.3]} 10... Nf7 {[%clk 0:02:49.7]} 11. f4
{[%clk 0:02:49.5]} 11... f5 {[%clk 0:02:47.5]} 12. e5 {[%clk 0:02:46]} 12...
dxe5 {[%clk 0:02:45.3]} 13. fxe5 {[%clk 0:02:39.3]} 13... Nxe5 {[%clk
0:02:43.5]} 14. Bxc5 {[%clk 0:02:34.7]} 14... Nd7 {[%clk 0:02:38.8]} 15. Be3
{[%clk 0:02:29.2]} 15... e5 {[%clk 0:02:38.6]} 16. Rae1 {[%clk 0:02:21.8]} 16...
Bb7 {[%clk 0:02:31.5]} 17. Bh6 {[%clk 0:02:18.6]} 17... c5 {[%clk 0:02:28.6]}
18. Bxg7 {[%clk 0:02:18.7]} 18... Kxg7 {[%clk 0:02:29.5]} 19. Ng3 {[%clk
0:02:07.9]} 19... Qh4 {[%clk 0:02:23.5]} 20. Qf2 {[%clk 0:02:07.1]} 20... Qg5
{[%clk 0:02:11.7]} 21. Kh2 {[%clk 0:01:46.5]} 21... Rae8 {[%clk 0:02:09.5]} 22.
Nb5 {[%clk 0:01:45]} 22... Rf6 {[%clk 0:01:49.8]} 23. c4 {[%clk 0:01:31]} 23...
h5 {[%clk 0:01:38.7]} 24. Nc7 {[%clk 0:01:14.2]} 24... Ref8 {[%clk 0:01:27.2]}
25. Nd5 {[%clk 0:01:12.7]} 25... Bxd5 {[%clk 0:01:21.8]} 26. cxd5 {[%clk
0:01:12.6]} 26... h4 {[%clk 0:01:21.5]} 27. Ne2 {[%clk 0:01:11.4]} 27... Rd6
{[%clk 0:01:21]} 28. Nc3 {[%clk 0:01:11.1]} 28... Rb8 {[%clk 0:01:10.2]} 29. b3
{[%clk 0:01:10.1]} 29... a6 {[%clk 0:01:03.1]} 30. Re2 {[%clk 0:01:07.7]} 30...
Rb4 {[%clk 0:01:00.5]} 31. Rfe1 {[%clk 0:01:05.5]} 31... Rf4 {[%clk 0:01:00.2]}
32. Qe3 {[%clk 0:01:00.5]} 32... Qf6 {[%clk 0:00:49.3]} 33. Rf2 {[%clk
0:00:56.1]} 33... g5 {[%clk 0:00:41.8]} 34. Rxf4 {[%clk 0:00:39.2]} 34... gxf4
{[%clk 0:00:42.7]} 35. Qf2 {[%clk 0:00:36.8]} 35... Qg5 {[%clk 0:00:42.6]} 36.
Kg1 {[%clk 0:00:36.6]} 36... Qg3 {[%clk 0:00:40.9]} 37. Qe2 {[%clk 0:00:13.4]}
37... Rg6 {[%clk 0:00:39.9]} 38. Kh1 {[%clk 0:00:13.8]} 38... f3 {[%clk
0:00:29.3]} 39. Qd2 {[%clk 0:00:13.3]} 39... f2 {[%clk 0:00:27.2]} 0-1

[Event "*** SCC Grand Prix: Titled Tuesday Blitz"]
[Site "Chess.com"]
[Date "2020.06.02"]
[Round "10"]
[White "CalinGheorghiu"]
[Black "Moon_stone123"]
[Result "1-0"]
[WhiteElo "2334"]
[BlackElo "2466"]
[TimeControl "180+1"]
[EndTime "11:58:13 PDT"]
[Termination "CalinGheorghiu won by checkmate"]

1. e4 {[%clk 0:03:00.9]} 1... c5 {[%clk 0:02:59.3]} 2. Nf3 {[%clk 0:03:00.1]}
2... d6 {[%clk 0:02:59.3]} 3. d4 {[%clk 0:02:59.5]} 3... cxd4 {[%clk 0:03:00.2]}
4. Nxd4 {[%clk 0:02:59.9]} 4... Nf6 {[%clk 0:03:00.8]} 5. Nc3 {[%clk 0:02:59.9]}
5... g6 {[%clk 0:03:01.4]} 6. f3 {[%clk 0:02:58.5]} 6... Bg7 {[%clk 0:03:01.7]}
7. Be3 {[%clk 0:02:58.2]} 7... Nc6 {[%clk 0:03:01.6]} 8. Qd2 {[%clk 0:02:58]}
8... O-O {[%clk 0:03:01.2]} 9. Bc4 {[%clk 0:02:58.6]} 9... Bd7 {[%clk
0:03:01.1]} 10. O-O-O {[%clk 0:02:56.7]} 10... Rc8 {[%clk 0:03:01.1]} 11. Bb3
{[%clk 0:02:56]} 11... Ne5 {[%clk 0:03:01.5]} 12. Kb1 {[%clk 0:02:55.8]} 12...
Re8 {[%clk 0:03:01.3]} 13. h4 {[%clk 0:02:31.6]} 13... h5 {[%clk 0:03:00.8]} 14.
Bh6 {[%clk 0:02:29.8]} 14... Nc4 {[%clk 0:02:59.4]} 15. Bxc4 {[%clk 0:02:29]}
15... Rxc4 {[%clk 0:03:00.3]} 16. Bxg7 {[%clk 0:02:20.1]} 16... Kxg7 {[%clk
0:03:01.2]} 17. g4 {[%clk 0:02:20.4]} 17... hxg4 {[%clk 0:02:59.6]} 18. h5
{[%clk 0:02:19.9]} 18... Rh8 {[%clk 0:02:51.8]} 19. hxg6 {[%clk 0:01:51.3]}
19... fxg6 {[%clk 0:02:52.7]} 20. f4 {[%clk 0:01:36.8]} 20... Rxh1 {[%clk
0:02:07.1]} 21. Rxh1 {[%clk 0:01:34.5]} 21... Nh5 {[%clk 0:01:13.2]} 22. f5
{[%clk 0:01:10.9]} 22... Qe8 {[%clk 0:00:59.4]} 23. Nd5 {[%clk 0:00:39.1]} 23...
e5 {[%clk 0:00:42.3]} 24. fxe6 {[%clk 0:00:24.7]} 24... Bxe6 {[%clk 0:00:41.2]}
25. Rxh5 {[%clk 0:00:24.3]} 25... gxh5 {[%clk 0:00:23.3]} 26. Qg5+ {[%clk
0:00:23.1]} 26... Kf7 {[%clk 0:00:18.8]} 27. Qf6+ {[%clk 0:00:16.1]} 27... Kg8
{[%clk 0:00:18.9]} 28. Nxe6 {[%clk 0:00:14.8]} 28... Qf7 {[%clk 0:00:06.4]} 29.
Ne7+ {[%clk 0:00:14.5]} 29... Qxe7 {[%clk 0:00:04.1]} 30. Qxe7 {[%clk
0:00:14.7]} 30... Rxe4 {[%clk 0:00:03.7]} 31. Qf8+ {[%clk 0:00:14.3]} 31... Kh7
{[%clk 0:00:02.7]} 32. Qg7# {[%clk 0:00:14.8]} 1-0

[Event "*** SCC Grand Prix: Titled Tuesday Blitz"]
[Site "Chess.com"]
[Date "2020.06.02"]
[Round "10"]
[White "nitpicker"]
[Black "NZT72"]
[Result "1-0"]
[WhiteElo "2249"]
[BlackElo "2389"]
[TimeControl "180+1"]
[EndTime "11:58:13 PDT"]
[Termination "nitpicker won on time"]

1. d4 {[%clk 0:03:00.9]} 1... Nf6 {[%clk 0:02:59.6]} 2. c4 {[%clk 0:03:00.6]}
2... e6 {[%clk 0:02:56.9]} 3. g3 {[%clk 0:02:59.7]} 3... d5 {[%clk 0:02:56.4]}
4. Nf3 {[%clk 0:02:59.3]} 4... Be7 {[%clk 0:02:56.6]} 5. Bg2 {[%clk 0:02:59.3]}
5... O-O {[%clk 0:02:56.8]} 6. O-O {[%clk 0:02:59.5]} 6... dxc4 {[%clk
0:02:57.2]} 7. Ne5 {[%clk 0:02:59.5]} 7... Nc6 {[%clk 0:02:52.3]} 8. Bxc6 {[%clk
0:02:58.7]} 8... bxc6 {[%clk 0:02:52.6]} 9. Nxc6 {[%clk 0:02:59]} 9... Qe8
{[%clk 0:02:52.9]} 10. Nxe7+ {[%clk 0:02:59.2]} 10... Qxe7 {[%clk 0:02:53.8]}
11. Qa4 {[%clk 0:02:58.7]} 11... e5 {[%clk 0:02:52.7]} 12. dxe5 {[%clk
0:02:55.9]} 12... Qxe5 {[%clk 0:02:52.6]} 13. Qxc4 {[%clk 0:02:54.6]} 13... Be6
{[%clk 0:02:52.6]} 14. Qd3 {[%clk 0:02:51.3]} 14... Bf5 {[%clk 0:02:36.1]} 15.
Qe3 {[%clk 0:02:41.6]} 15... Qb5 {[%clk 0:02:04.9]} 16. Nc3 {[%clk 0:02:26.4]}
16... Qb7 {[%clk 0:02:04.5]} 17. f3 {[%clk 0:02:22.8]} 17... Rfe8 {[%clk
0:01:44.5]} 18. Qf2 {[%clk 0:02:21.8]} 18... Be6 {[%clk 0:01:36.3]} 19. e4
{[%clk 0:02:17.3]} 19... Nd7 {[%clk 0:01:33.6]} 20. b3 {[%clk 0:02:05.4]} 20...
Ne5 {[%clk 0:01:24]} 21. Be3 {[%clk 0:01:49.8]} 21... a6 {[%clk 0:01:11]} 22.
Na4 {[%clk 0:01:28.6]} 22... Bh3 {[%clk 0:00:53.7]} 23. Rfd1 {[%clk 0:01:21.6]}
23... f5 {[%clk 0:00:51.6]} 24. Nc5 {[%clk 0:01:15.5]} 24... Qc6 {[%clk
0:00:46]} 25. Rac1 {[%clk 0:01:10.8]} 25... Rf8 {[%clk 0:00:21.4]} 26. Nd7
{[%clk 0:01:05.6]} 26... Qg6 {[%clk 0:00:18.9]} 27. Nxe5 {[%clk 0:01:02.6]}
27... Qh5 {[%clk 0:00:17]} 28. exf5 {[%clk 0:00:51.7]} 28... Qxf5 {[%clk
0:00:15.2]} 29. Nd7 {[%clk 0:00:41.7]} 29... Rf7 {[%clk 0:00:12]} 30. f4 {[%clk
0:00:27.9]} 30... Bg4 {[%clk 0:00:07.7]} 31. Rc5 {[%clk 0:00:25.2]} 31... Bxd1
{[%clk 0:00:04.6]} 32. Rxf5 {[%clk 0:00:23.8]} 32... Rxf5 {[%clk 0:00:05.5]} 33.
Qd2 {[%clk 0:00:22.3]} 33... Bh5 {[%clk 0:00:03.7]} 34. Ne5 {[%clk 0:00:22.2]}
34... Bf7 {[%clk 0:00:02.8]} 35. Qd7 {[%clk 0:00:20.3]} 35... Rxe5 {[%clk
0:00:01.8]} 36. fxe5 {[%clk 0:00:19.6]} 1-0

[Event "*** SCC Grand Prix: Titled Tuesday Blitz"]
[Site "Chess.com"]
[Date "2020.06.02"]
[Round "10"]
[White "gmcorrales"]
[Black "RobertoJBM"]
[Result "1-0"]
[WhiteElo "2778"]
[BlackElo "2643"]
[TimeControl "180+1"]
[EndTime "11:58:15 PDT"]
[Termination "gmcorrales won on time"]

1. e4 {[%clk 0:03:00.9]} 1... c6 {[%clk 0:02:58.1]} 2. d4 {[%clk 0:03:00.5]}
2... d5 {[%clk 0:02:59]} 3. e5 {[%clk 0:02:59.8]} 3... Bf5 {[%clk 0:02:58.8]} 4.
h4 {[%clk 0:02:58.5]} 4... h6 {[%clk 0:02:52.4]} 5. g4 {[%clk 0:02:52.9]} 5...
Bd7 {[%clk 0:02:52.5]} 6. h5 {[%clk 0:02:51.1]} 6... e6 {[%clk 0:02:50.9]} 7. f4
{[%clk 0:02:50.2]} 7... c5 {[%clk 0:02:50.8]} 8. c3 {[%clk 0:02:48.3]} 8... Qb6
{[%clk 0:02:51.3]} 9. Nf3 {[%clk 0:02:48.3]} 9... Nc6 {[%clk 0:02:50.1]} 10. Na3
{[%clk 0:02:40.9]} 10... cxd4 {[%clk 0:02:37.7]} 11. cxd4 {[%clk 0:02:40.3]}
11... Bxa3 {[%clk 0:02:25.8]} 12. bxa3 {[%clk 0:02:41.2]} 12... Na5 {[%clk
0:02:25.7]} 13. Kf2 {[%clk 0:02:36.1]} 13... Nc4 {[%clk 0:02:24.8]} 14. Bd3
{[%clk 0:02:30.5]} 14... Rc8 {[%clk 0:02:22.9]} 15. Rb1 {[%clk 0:02:28.1]} 15...
Qc7 {[%clk 0:02:12]} 16. f5 {[%clk 0:02:24.2]} 16... Ne7 {[%clk 0:02:09.5]} 17.
f6 {[%clk 0:02:04.1]} 17... gxf6 {[%clk 0:02:08.2]} 18. exf6 {[%clk 0:02:05]}
18... Nc6 {[%clk 0:02:08.4]} 19. Re1 {[%clk 0:01:51.5]} 19... N6a5 {[%clk
0:01:40.1]} 20. Qe2 {[%clk 0:01:32.2]} 20... b6 {[%clk 0:01:38]} 21. Ne5 {[%clk
0:01:31.9]} 21... Nxe5 {[%clk 0:01:37.7]} 22. Qxe5 {[%clk 0:01:32.8]} 22... Qxe5
{[%clk 0:01:32.3]} 23. dxe5 {[%clk 0:01:33.7]} 23... Nb7 {[%clk 0:01:12.9]} 24.
Ba6 {[%clk 0:01:27.9]} 24... Rc7 {[%clk 0:01:11.3]} 25. Bxb7 {[%clk 0:01:24.6]}
25... Rxb7 {[%clk 0:01:11.2]} 26. Bd2 {[%clk 0:01:25.1]} 26... Ba4 {[%clk
0:00:52.6]} 27. Rbc1 {[%clk 0:01:22.8]} 27... Kd7 {[%clk 0:00:52.8]} 28. Re3
{[%clk 0:01:21.3]} 28... Bb5 {[%clk 0:00:52.6]} 29. Bb4 {[%clk 0:01:14.1]} 29...
Bc4 {[%clk 0:00:51.7]} 30. Bd6 {[%clk 0:01:13.5]} 30... b5 {[%clk 0:00:50.7]}
31. Kg3 {[%clk 0:01:10.7]} 31... d4 {[%clk 0:00:49.1]} 32. Re4 {[%clk
0:01:10.7]} 32... d3 {[%clk 0:00:48.6]} 33. Rd4 {[%clk 0:01:10.9]} 33... Kc6
{[%clk 0:00:49]} 34. Rxd3 {[%clk 0:01:10.4]} 34... Rd7 {[%clk 0:00:44.8]} 35.
Rd4 {[%clk 0:01:09.3]} 35... a6 {[%clk 0:00:43.7]} 36. a4 {[%clk 0:01:09.1]}
36... Kb6 {[%clk 0:00:42.5]} 37. axb5 {[%clk 0:01:09.1]} 37... axb5 {[%clk
0:00:43.4]} 38. a4 {[%clk 0:01:09]} 38... Ra8 {[%clk 0:00:29.7]} 39. axb5 {[%clk
0:01:07.9]} 39... Bxb5 {[%clk 0:00:30.6]} 40. Rb4 {[%clk 0:01:06.4]} 40... Ra4
{[%clk 0:00:29.6]} 41. Rxa4 {[%clk 0:01:03.8]} 41... Bxa4 {[%clk 0:00:30.5]} 42.
Rc8 {[%clk 0:01:02.9]} 42... Rb7 {[%clk 0:00:16.9]} 43. g5 {[%clk 0:00:36.7]}
43... hxg5 {[%clk 0:00:05]} 44. h6 {[%clk 0:00:35.6]} 1-0

[Event "*** SCC Grand Prix: Titled Tuesday Blitz"]
[Site "Chess.com"]
[Date "2020.06.02"]
[Round "10"]
[White "JesseKraai"]
[Black "Leonid_Starozhilov"]
[Result "0-1"]
[WhiteElo "2443"]
[BlackElo "2698"]
[TimeControl "180+1"]
[EndTime "11:58:16 PDT"]
[Termination "Leonid_Starozhilov won by resignation"]

1. d4 {[%clk 0:03:00.9]} 1... Nf6 {[%clk 0:02:59.1]} 2. c4 {[%clk 0:03:00.9]}
2... g6 {[%clk 0:02:59.2]} 3. Nc3 {[%clk 0:03:01]} 3... Bg7 {[%clk 0:02:59.7]}
4. e4 {[%clk 0:03:01.2]} 4... d6 {[%clk 0:03:00.1]} 5. Nf3 {[%clk 0:03:01.4]}
5... Bg4 {[%clk 0:02:59]} 6. Be2 {[%clk 0:03:00.9]} 6... O-O {[%clk 0:02:58.6]}
7. O-O {[%clk 0:03:00.4]} 7... Nfd7 {[%clk 0:02:58.1]} 8. Be3 {[%clk 0:02:58.9]}
8... a6 {[%clk 0:02:57.7]} 9. Rc1 {[%clk 0:02:56.3]} 9... c5 {[%clk 0:02:57.4]}
10. d5 {[%clk 0:02:52.3]} 10... Bxf3 {[%clk 0:02:54.5]} 11. Bxf3 {[%clk
0:02:51.6]} 11... b5 {[%clk 0:02:54.2]} 12. b3 {[%clk 0:02:48.5]} 12... b4
{[%clk 0:02:54.3]} 13. Nb1 {[%clk 0:02:40.7]} 13... a5 {[%clk 0:02:54.3]} 14.
Nd2 {[%clk 0:02:33.9]} 14... a4 {[%clk 0:02:53.7]} 15. Bg4 {[%clk 0:02:29.8]}
15... axb3 {[%clk 0:02:50.8]} 16. axb3 {[%clk 0:02:29.3]} 16... Ra2 {[%clk
0:02:50]} 17. f4 {[%clk 0:02:27.2]} 17... Nf6 {[%clk 0:02:36.1]} 18. Bf3 {[%clk
0:02:26.5]} 18... Nbd7 {[%clk 0:02:36.1]} 19. g4 {[%clk 0:02:24.8]} 19... Qa5
{[%clk 0:02:29.1]} 20. g5 {[%clk 0:02:22.8]} 20... Ne8 {[%clk 0:02:29.1]} 21.
Bg4 {[%clk 0:02:19.6]} 21... Nb6 {[%clk 0:02:18]} 22. Nf3 {[%clk 0:02:14.8]}
22... Nc7 {[%clk 0:02:00.9]} 23. e5 {[%clk 0:02:11.5]} 23... Qa3 {[%clk
0:01:46.3]} 24. Rb1 {[%clk 0:01:39.6]} 24... Ra8 {[%clk 0:01:44]} 25. Bc1 {[%clk
0:01:39.2]} 25... Qa6 {[%clk 0:01:36.1]} 26. Re1 {[%clk 0:01:35.3]} 26... Nxc4
{[%clk 0:01:34.5]} 27. bxc4 {[%clk 0:01:32.9]} 27... Qxc4 {[%clk 0:01:35.4]} 28.
Qb3 {[%clk 0:00:47.2]} 28... Qxb3 {[%clk 0:01:22.8]} 29. Rxb3 {[%clk 0:00:46.8]}
29... Nxd5 {[%clk 0:01:23]} 30. Rd1 {[%clk 0:00:45.6]} 30... Nc3 {[%clk
0:01:18.5]} 31. Re1 {[%clk 0:00:29.4]} 31... Rc2 {[%clk 0:01:02.9]} 32. Bd2
{[%clk 0:00:25.1]} 32... Nd5 {[%clk 0:00:29.7]} 33. Rd1 {[%clk 0:00:18.5]} 33...
c4 {[%clk 0:00:24.6]} 34. Rxb4 {[%clk 0:00:17.8]} 34... Rxd2 {[%clk 0:00:19.9]}
35. Rxd2 {[%clk 0:00:16.6]} 35... Nxb4 {[%clk 0:00:19.8]} 36. exd6 {[%clk
0:00:17]} 36... c3 {[%clk 0:00:19.7]} 37. dxe7 {[%clk 0:00:08.3]} 37... cxd2
{[%clk 0:00:17]} 38. Nxd2 {[%clk 0:00:08.9]} 38... Re8 {[%clk 0:00:15.8]} 0-1

[Event "*** SCC Grand Prix: Titled Tuesday Blitz"]
[Site "Chess.com"]
[Date "2020.06.02"]
[Round "10"]
[White "PattyCastillo"]
[Black "Klavdia_Nik"]
[Result "0-1"]
[WhiteElo "1897"]
[BlackElo "2041"]
[TimeControl "180+1"]
[EndTime "11:58:16 PDT"]
[Termination "Klavdia_Nik won by resignation"]

1. d4 {[%clk 0:03:00.9]} 1... Nf6 {[%clk 0:02:59]} 2. Nf3 {[%clk 0:03:00.5]}
2... c5 {[%clk 0:02:59.4]} 3. e3 {[%clk 0:03:00.1]} 3... b6 {[%clk 0:02:59.4]}
4. Bd3 {[%clk 0:02:59]} 4... Bb7 {[%clk 0:02:59.6]} 5. b3 {[%clk 0:02:58.9]}
5... g6 {[%clk 0:02:58.6]} 6. Bb2 {[%clk 0:02:58.8]} 6... Bg7 {[%clk 0:02:59.2]}
7. O-O {[%clk 0:02:58.9]} 7... O-O {[%clk 0:02:59.7]} 8. Nbd2 {[%clk 0:02:59]}
8... d5 {[%clk 0:02:49.7]} 9. Qe2 {[%clk 0:02:48.6]} 9... Nc6 {[%clk 0:02:44.8]}
10. a3 {[%clk 0:02:47.1]} 10... Rc8 {[%clk 0:02:34.1]} 11. Rac1 {[%clk
0:02:46.1]} 11... e6 {[%clk 0:02:26.9]} 12. Rfd1 {[%clk 0:02:39.9]} 12... Qe7
{[%clk 0:02:24.6]} 13. Ne5 {[%clk 0:02:35.6]} 13... Nd7 {[%clk 0:02:21.6]} 14.
f4 {[%clk 0:02:31.5]} 14... f6 {[%clk 0:02:18.8]} 15. Nxd7 {[%clk 0:02:25.1]}
15... Qxd7 {[%clk 0:02:17.8]} 16. c4 {[%clk 0:02:06]} 16... Qe7 {[%clk
0:01:58.9]} 17. dxc5 {[%clk 0:01:42.1]} 17... bxc5 {[%clk 0:01:57.2]} 18. e4
{[%clk 0:01:39.7]} 18... d4 {[%clk 0:01:54.8]} 19. Nf3 {[%clk 0:01:25.9]} 19...
e5 {[%clk 0:01:54.5]} 20. fxe5 {[%clk 0:01:23]} 20... fxe5 {[%clk 0:01:54.8]}
21. Rf1 {[%clk 0:01:20.3]} 21... Bh6 {[%clk 0:01:48.5]} 22. Rce1 {[%clk
0:01:19.2]} 22... Be3+ {[%clk 0:01:23.5]} 23. Kh1 {[%clk 0:01:18]} 23... Rf7
{[%clk 0:01:11.2]} 24. Bc1 {[%clk 0:01:15.7]} 24... Bxc1 {[%clk 0:01:05.1]} 25.
Rxc1 {[%clk 0:01:13.5]} 25... Rcf8 {[%clk 0:01:02.5]} 26. Qd2 {[%clk 0:01:02.1]}
26... Kg7 {[%clk 0:01:01.8]} 27. Ng5 {[%clk 0:00:38.7]} 27... Rxf1+ {[%clk
0:00:55.5]} 28. Rxf1 {[%clk 0:00:39.2]} 28... Rxf1+ {[%clk 0:00:54.9]} 29. Bxf1
{[%clk 0:00:39.8]} 29... h6 {[%clk 0:00:38.3]} 30. Nf3 {[%clk 0:00:38.2]} 30...
Bc8 {[%clk 0:00:38.7]} 31. h3 {[%clk 0:00:35.1]} 31... a5 {[%clk 0:00:36.6]} 32.
Bd3 {[%clk 0:00:32.3]} 32... Qf6 {[%clk 0:00:35.1]} 33. Kg1 {[%clk 0:00:30.9]}
33... g5 {[%clk 0:00:32.6]} 34. Nh2 {[%clk 0:00:18.9]} 34... h5 {[%clk 0:00:19]}
35. Qe2 {[%clk 0:00:16.2]} 35... Kh6 {[%clk 0:00:16.3]} 36. Qe1 {[%clk
0:00:13.6]} 36... g4 {[%clk 0:00:15.6]} 37. Nxg4+ {[%clk 0:00:13.2]} 37... hxg4
{[%clk 0:00:14.8]} 0-1

[Event "*** SCC Grand Prix: Titled Tuesday Blitz"]
[Site "Chess.com"]
[Date "2020.06.02"]
[Round "10"]
[White "atalz0"]
[Black "Rodchenkov_Vitalij"]
[Result "0-1"]
[WhiteElo "2301"]
[BlackElo "2432"]
[TimeControl "180+1"]
[EndTime "11:58:18 PDT"]
[Termination "Rodchenkov_Vitalij won on time"]

1. d4 {[%clk 0:03:00.9]} 1... d5 {[%clk 0:02:59.9]} 2. c4 {[%clk 0:03:00.5]}
2... c6 {[%clk 0:02:57.2]} 3. cxd5 {[%clk 0:03:00.2]} 3... cxd5 {[%clk 0:02:57]}
4. Bf4 {[%clk 0:03:00.9]} 4... Nc6 {[%clk 0:02:52]} 5. e3 {[%clk 0:03:00.7]}
5... Bf5 {[%clk 0:02:51.1]} 6. Qb3 {[%clk 0:02:59.6]} 6... Qd7 {[%clk
0:02:46.3]} 7. Nc3 {[%clk 0:02:58.9]} 7... e6 {[%clk 0:02:40.2]} 8. Nf3 {[%clk
0:02:58.9]} 8... Bd6 {[%clk 0:02:35.2]} 9. Ne5 {[%clk 0:02:23.4]} 9... Bxe5
{[%clk 0:02:25.9]} 10. Bxe5 {[%clk 0:02:24.3]} 10... Nf6 {[%clk 0:02:20]} 11.
Bxf6 {[%clk 0:02:18]} 11... gxf6 {[%clk 0:02:19.2]} 12. Be2 {[%clk 0:02:17.8]}
12... Bg6 {[%clk 0:02:06.4]} 13. O-O {[%clk 0:02:15.6]} 13... h5 {[%clk
0:01:59.9]} 14. Rfc1 {[%clk 0:02:14.4]} 14... Rc8 {[%clk 0:01:54.5]} 15. Na4
{[%clk 0:02:11.3]} 15... Qe7 {[%clk 0:01:41.2]} 16. Bb5 {[%clk 0:01:51.8]} 16...
h4 {[%clk 0:01:33.6]} 17. Nc5 {[%clk 0:01:44.2]} 17... O-O {[%clk 0:01:23.4]}
18. Qa4 {[%clk 0:01:38.3]} 18... a6 {[%clk 0:01:20.4]} 19. Nxa6 {[%clk
0:01:27.7]} 19... Ra8 {[%clk 0:01:09.1]} 20. Rxc6 {[%clk 0:01:26.4]} 20... bxc6
{[%clk 0:01:04.9]} 21. Bxc6 {[%clk 0:01:26.4]} 21... Ra7 {[%clk 0:01:00.5]} 22.
b4 {[%clk 0:01:26]} 22... Rc8 {[%clk 0:00:48.8]} 23. b5 {[%clk 0:01:24.4]} 23...
Qd8 {[%clk 0:00:44.6]} 24. Rc1 {[%clk 0:00:27.3]} 24... Qb6 {[%clk 0:00:37.5]}
25. h3 {[%clk 0:00:27.4]} 25... Bd3 {[%clk 0:00:34.9]} 26. Qd1 {[%clk
0:00:19.9]} 26... Bxb5 {[%clk 0:00:32.8]} 27. Qg4+ {[%clk 0:00:16.4]} 27... Kf8
{[%clk 0:00:28.1]} 28. Qxh4 {[%clk 0:00:14.3]} 28... Bxa6 {[%clk 0:00:25.6]} 29.
Qxf6 {[%clk 0:00:12]} 29... Rxc6 {[%clk 0:00:24.3]} 30. Qh8+ {[%clk 0:00:05.6]}
30... Ke7 {[%clk 0:00:23.7]} 31. Qh4+ {[%clk 0:00:05.7]} 31... Kd7 {[%clk
0:00:23.8]} 32. Rd1 {[%clk 0:00:03.4]} 32... Rac7 {[%clk 0:00:22.3]} 33. Qf6
{[%clk 0:00:03.4]} 33... Kc8 {[%clk 0:00:22]} 34. Qh8+ {[%clk 0:00:01.7]} 34...
Kb7 {[%clk 0:00:22.3]} 35. Kh2 {[%clk 0:00:01.2]} 35... Rc1 {[%clk 0:00:22.6]}
36. Rd2 {[%clk 0:00:01.5]} 36... Qb1 {[%clk 0:00:21.7]} 0-1